bitfinex-derivatives/quotes_ETHF0:USTF0_20250503
["timestamp","ask_amount","ask_price","bid_price","bid_amount"]
[1746280726785,7.27925241,1834.8,1834.7,3.718]
[1746280727882,7.27925589,1834.8,1834.7,3.718]
[1746280730786,7.27925689,1834.8,1834.7,3.718]
[1746280731190,6.8626,1834.8,1834.7,3.718]
[1746280731786,7.27928942,1834.8,1834.7,3.718]
[1746280732489,7.27934393,1834.8,1834.7,3.718]
[1746280732691,4.07154393,1834.8,1834.7,3.718]
[1746280734292,4.07167261,1834.8,1834.7,3.718]
[1746280735887,4.07177578,1834.8,1834.7,3.718]
[1746280736087,3.22097578,1834.8,1834.7,3.718]
[1746280736998,3.22097578,1834.8,1834.7,4.80782]
[1746280737192,2.13117578,1834.8,1834.7,4.80782]
[1746280737396,2.13117578,1834.8,1834.7,6.47062]
[1746280737993,2.13129348,1834.8,1834.7,6.47062]
[1746280739395,3.22105348,1834.8,1834.7,6.47062]
[1746280739701,3.2211816,1834.8,1834.7,6.47062]
[1746280739995,0.4172216,1834.8,1834.7,6.47062]
[1746280740199,3.2078,1834.9,1834.8,1.08976]
[1746280740497,3.62509306,1834.9,1834.8,3.68196]
[1746280740892,3.62509306,1834.9,1834.8,44.48196]
[1746280741290,3.62509306,1834.9,1834.8,48.19996]
[1746280742793,1.0897,1834.9,1834.8,48.19992]
[1746280743000,3.18737249,1834.9,1834.8,48.19992]
[1746280743200,2.09768137,1834.9,1834.8,48.19992]
[1746280743401,1.6805,1834.9,1834.8,48.19992]
[1746280743700,0.829,1835.0,1834.9,1.0897]
[1746280743901,7.27367722,1835.1,1835.0,1.08964]
[1746280744094,7.69078586,1835.1,1835.0,1.08964]
[1746280744296,7.69078586,1835.1,1835.0,4.80764]
[1746280744498,4.04791864,1835.1,1835.0,4.80764]
[1746280744807,3.18721864,1835.1,1835.0,4.80764]
[1746280745008,3.18706835,1835.1,1835.0,5.64254]
[1746280746806,3.18683823,1835.1,1835.0,5.64254]
[1746280748307,2.77011,1835.1,1835.0,5.64254]
[1746280756405,2.77011,1835.1,1835.0,46.44254]
[1746280758010,1.6805,1835.1,1835.0,46.44254]
[1746280758210,1.6805,1835.1,1835.0,47.30914]
[1746280759208,1.08957,1835.2,1835.1,1.08958]
[1746280759405,4.8121,1835.3,1835.2,1.08952]
[1746280759711,4.8121,1835.3,1835.2,1.91502]
[1746280760111,4.8121,1835.3,1835.2,5.63302]
[1746280760308,4.8121,1835.3,1835.2,7.35622]
[1746280760699,5.90156,1835.3,1835.2,7.35622]
[1746280762110,2.69376,1835.3,1835.2,7.35622]
[1746280762310,4.8121,1835.3,1835.2,7.35622]
[1746280764011,5.90156,1835.3,1835.2,7.35622]
[1746280764510,4.8121,1835.3,1835.2,7.35622]
[1746280765309,3.2078,1835.3,1835.2,7.35622]
[1746280767116,5.93282,1835.6,1835.5,1.08934]
[1746280767306,8.04247085,1835.6,1835.5,1.08934]
[1746280767613,8.04247085,1835.6,1835.5,41.88934]
[1746280768114,8.04247085,1835.6,1835.5,45.60734]
[1746280768314,8.0423347,1835.6,1835.5,45.60734]
[1746280768713,4.41802,1835.6,1835.5,45.60734]
[1746280769513,3.3287,1835.6,1835.5,45.60734]
[1746280769912,4.41798,1835.6,1835.5,45.60734]
[1746280771014,3.3287,1835.6,1835.5,45.60734]
[1746280773402,4.41798,1835.6,1835.5,45.60734]
[1746280775714,4.41798,1835.6,1835.5,44.518]
[1746280776214,4.83413221,1835.6,1835.5,45.60734]
[1746280777414,4.83414195,1835.6,1835.5,45.60734]
[1746280777808,4.83414195,1835.6,1835.5,44.518]
[1746280778210,4.83414195,1835.6,1835.5,45.60734]
[1746280781411,4.83414195,1835.6,1835.5,44.518]
[1746280782425,4.83414195,1835.6,1835.5,45.60734]
[1746280782827,4.83431684,1835.6,1835.5,44.518]
[1746280783324,4.83431684,1835.6,1835.5,45.60734]
[1746280784625,4.8344313,1835.6,1835.5,45.60734]
[1746280786416,4.83459294,1835.6,1835.5,45.60734]
[1746280788328,4.83459294,1835.6,1835.5,3.718]
[1746280788926,4.83459294,1835.6,1835.5,44.518]
[1746280789229,4.83459294,1835.6,1835.5,45.60734]
[1746280790428,4.83491378,1835.6,1835.5,45.60734]
[1746280791930,4.83495276,1835.6,1835.5,45.60734]
[1746280792827,4.83495276,1835.6,1835.5,44.518]
[1746280793234,4.83495276,1835.6,1835.5,45.60734]
[1746280793428,4.83495276,1835.6,1835.5,44.518]
[1746280793624,4.83495276,1835.6,1835.5,45.60734]
[1746280794731,4.83495276,1835.6,1835.5,44.518]
[1746280795531,4.83525149,1835.6,1835.5,44.518]
[1746280797532,4.83535602,1835.6,1835.5,44.518]
[1746280799134,4.83535568,1835.6,1835.5,44.518]
[1746280800542,4.83535568,1835.6,1835.5,3.718]
[1746280800944,4.83540807,1835.6,1835.5,3.718]
[1746280801238,4.83540807,1835.6,1835.2,3.2078]
[1746280801239,1.08946,1835.3,1835.2,44.0078]
[1746280801441,1.50688807,1835.3,1835.2,44.0078]
[1746280802141,1.50688807,1835.3,1835.2,47.7258]
[1746280802343,3.98848807,1835.3,1835.2,47.7258]
[1746280802642,3.98830023,1835.3,1835.2,47.7258]
[1746280803955,3.98830023,1835.3,1835.2,44.518]
[1746280804445,3.98819581,1835.3,1835.2,44.518]
[1746280807948,3.98805433,1835.3,1835.2,44.518]
[1746280809642,3.57106,1835.3,1835.2,44.518]
[1746280809849,3.98797315,1835.3,1835.2,44.518]
[1746280811443,3.57106,1835.3,1835.2,44.518]
[1746280811649,3.98791194,1835.3,1835.2,3.718]
[1746280813547,3.98791194,1835.3,1835.2,4.80752]
[1746280814351,3.98783826,1835.3,1835.2,4.80752]
[1746280815054,3.57106,1835.3,1835.2,4.80752]
[1746280815349,3.9878389,1835.3,1835.2,4.80752]
[1746280818652,3.98784443,1835.3,1835.2,4.80752]
[1746280819349,3.15604443,1835.3,1835.2,4.80752]
[1746280819553,1.50624443,1835.3,1835.2,8.03272]
[1746280820956,3.13704443,1835.3,1835.2,8.03272]
[1746280821357,2.72026,1835.3,1835.2,8.03272]
[1746280823260,3.13719237,1835.3,1835.2,8.03272]
[1746280825863,3.13733524,1835.3,1835.2,8.03272]
[1746280827059,3.13733524,1835.3,1835.2,6.1516]
[1746280827254,3.13733524,1835.3,1835.2,3.718]
[1746280827255,7.14453524,1835.3,1835.2,3.718]
[1746280827764,7.14477703,1835.3,1835.2,3.718]
[1746280828363,10.56877703,1835.3,1835.2,3.718]
[1746280828652,15.56877703,1835.3,1835.2,3.718]
[1746280829060,1.08964,1835.0,1834.9,7.2696018]
[1746280829248,4.71475703,1835.0,1834.9,7.2696018]
[1746280830161,7.20065703,1835.0,1834.9,10.9876018]
[1746280830461,6.78334,1835.0,1834.9,10.9876018]
[1746280830661,7.20568271,1835.0,1834.9,10.9876018]
[1746280831361,7.20552657,1835.0,1834.9,10.9876018]
[1746280831960,7.20552657,1835.0,1834.9,3.718]
[1746280832564,3.99772657,1835.0,1834.9,4.8077]
[1746280832862,3.99772657,1835.0,1834.9,5.4571]
[1746280833063,3.99757786,1835.0,1834.9,5.4571]
[1746280833857,3.99757786,1835.0,1834.9,6.5468]
[1746280834161,3.99757786,1835.0,1834.9,5.4571]
[1746280834458,3.99757786,1835.0,1834.9,3.718]
[1746280834963,3.99746128,1835.0,1834.9,3.718]
[1746280835359,3.99746128,1835.0,1834.9,5.2985]
[1746280836665,3.99742831,1835.0,1834.9,5.2985]
[1746280838467,3.99737219,1835.0,1834.9,5.2985]
[1746280839172,3.99737219,1835.0,1834.9,3.718]
[1746280840366,3.99733998,1835.0,1834.9,3.718]
[1746280842071,3.99732838,1835.0,1834.9,3.718]
[1746280845668,3.99731759,1835.0,1834.9,3.718]
[1746280847469,3.99734416,1835.0,1834.9,3.718]
[1746280851175,3.99745861,1835.0,1834.9,3.718]
[1746280852073,3.99752169,1835.0,1834.9,3.718]
[1746280852974,7.20542488,1835.0,1834.9,3.718]
[1746280856977,3.99762488,1835.0,1834.9,3.718]
[1746280857184,7.20542488,1835.0,1834.9,3.718]
[1746280860180,3.99762488,1835.0,1834.9,3.718]
[1746280860381,7.20542488,1835.0,1834.9,3.718]
[1746280863085,3.99762488,1835.0,1834.9,3.718]
[1746280863386,7.20542488,1835.0,1834.9,3.718]
[1746280863574,7.20630017,1835.0,1834.9,3.718]
[1746280865783,3.99850017,1835.0,1834.9,3.718]
[1746280867383,3.99854858,1835.0,1834.9,3.718]
[1746280869188,3.99857752,1835.0,1834.9,3.718]
[1746280872992,3.99864313,1835.0,1834.9,3.718]
[1746280875294,7.63377023,1835.0,1834.9,3.718]
[1746280876495,10.84157023,1835.0,1834.9,3.718]
[1746280876793,10.8415846,1835.0,1834.9,3.718]
[1746280878697,12.65914815,1835.0,1834.9,3.718]
[1746280882502,12.6592835,1835.0,1834.9,3.718]
[1746280884398,22.05831418,1835.0,1834.9,3.718]
[1746280885305,17.05831418,1835.0,1834.9,3.718]
[1746280885703,1.08988,1834.6,1834.5,7.2696018]
[1746280885898,1.5131278,1834.6,1834.5,7.2696018]
[1746280886300,3.25750415,1834.6,1834.5,10.9876018]
[1746280888811,6.90105263,1834.6,1834.5,3.718]
[1746280889109,6.90080958,1834.6,1834.5,3.718]
[1746280889310,4.06602958,1834.6,1834.5,4.80794]
[1746280889510,4.06602958,1834.6,1834.5,6.43664]
[1746280890010,4.06590785,1834.6,1834.5,6.43664]
[1746280890508,8.36358785,1834.6,1834.5,3.718]
[1746280890710,11.63338785,1834.6,1834.5,3.718]
[1746280892112,11.6333228,1834.6,1834.5,3.718]
[1746280892313,7.98977432,1834.6,1834.5,3.718]
[1746280895607,7.56748,1834.6,1834.5,3.718]
[1746280895815,7.98959856,1834.6,1834.5,3.718]
[1746280897115,7.98959856,1834.6,1834.5,4.80794]
[1746280897308,7.98959856,1834.6,1834.5,3.718]
[1746280899313,7.56748,1834.6,1834.5,3.718]
[1746280899616,7.98954992,1834.6,1834.5,3.718]
[1746280901217,7.98957537,1834.6,1834.5,3.718]
[1746280904217,1.09006,1834.3,1834.2,1.7215]
[1746280904413,1.09012,1834.2,1834.1,4.2493]
[1746280904615,3.12860108,1834.2,1834.1,45.0493]
[1746280904808,1.09018,1834.1,1834.0,1.6047]
[1746280905118,1.09023,1834.0,1833.9,8.0949018]
[1746280905418,1.09023,1834.0,1833.9,50.4996018]
[1746280905616,1.51231841,1834.0,1833.9,50.4996018]
[1746280906018,1.51231841,1834.0,1833.9,43.23]
[1746280906318,1.51231841,1834.0,1833.9,46.948]
[1746280907022,1.51218872,1834.0,1833.9,46.948]
[1746280907214,1.51218872,1834.0,1833.9,3.718]
[1746280907723,3.12878872,1834.0,1833.9,3.718]
[1746280909014,3.12881495,1834.0,1833.9,3.718]
[1746280909216,1.09029,1833.9,1833.8,7.2696018]
[1746280909418,7.95577495,1833.9,1833.8,7.2696018]
[1746280909618,6.86548495,1833.9,1833.7,0.8253]
[1746280909822,3.12893495,1833.8,1833.7,0.8253]
[1746280910123,3.12893495,1833.8,1833.7,4.5433]
[1746280911524,3.12893495,1833.8,1833.7,3.718]
[1746280912329,3.12885471,1833.8,1833.7,3.718]
[1746280914828,3.1290433,1833.8,1833.7,3.718]
[1746280917922,3.12895608,1833.8,1833.7,3.718]
[1746280918727,3.12869757,1833.8,1833.7,3.718]
[1746280922228,3.12869757,1833.8,1833.7,4.80841]
[1746280922433,6.6328,1833.9,1833.8,1.09035]
[1746280922633,7.0543987,1833.9,1833.8,3.48395]
[1746280922929,1.09029,1833.9,1833.8,3.48395]
[1746280923125,2.74616,1834.0,1833.9,1.09029]
[1746280923329,1.09022,1834.1,1833.9,3.68459]
[1746280923733,1.09022,1834.1,1834.0,1.7484]
[1746280924032,1.51173211,1834.1,1834.0,2.83863]
[1746280924226,1.51172956,1834.1,1834.0,6.55663]
[1746280924423,1.09022,1834.1,1834.0,6.55663]
[1746280924831,4.39766,1834.2,1834.0,6.55663]
[1746280925028,3.59696,1834.2,1834.1,2.6168]
[1746280925234,4.01848473,1834.2,1834.1,2.6168]
[1746280925931,0.42152473,1834.2,1834.1,3.70698]
[1746280926122,7.72289,1834.3,1834.1,3.70698]
[1746280926322,9.42569,1834.3,1834.2,1.6452]
[1746280926533,9.84724134,1834.3,1834.2,1.6452]
[1746280926737,9.42569,1834.3,1834.2,2.4473]
[1746280926935,9.84722588,1834.3,1834.2,3.53742]
[1746280927132,9.84728116,1834.3,1834.2,6.1653]
[1746280927434,6.42228116,1834.3,1834.2,6.1653]
[1746280927634,3.62939116,1834.3,1834.2,6.1653]
[1746280927835,3.62939116,1834.3,1834.2,7.25542]
[1746280928037,3.62939129,1834.3,1834.2,7.25542]
[1746280928336,4.71945129,1834.3,1834.2,7.25542]
[1746280928536,3.62939129,1834.3,1834.2,7.25542]
[1746280929830,0.42159129,1834.3,1834.2,7.25542]
[1746280930041,2.79284,1834.4,1834.3,1.09006]
[1746280930230,3.21462749,1834.4,1834.3,1.6948]
[1746280930739,2.12458749,1834.4,1834.3,2.78486]
[1746280930931,3.21458749,1834.4,1834.3,2.78486]
[1746280931134,3.21458749,1834.4,1834.3,6.50286]
[1746280931734,3.21461487,1834.4,1834.3,6.50286]
[1746280932332,2.12461487,1834.4,1834.3,6.50286]
[1746280932526,1.7028,1834.4,1834.3,6.50286]
[1746280933430,2.7928,1834.4,1834.3,6.50286]
[1746280940443,1.7028,1834.4,1834.3,6.50286]
[1746280941736,1.7028,1834.4,1834.3,47.30286]
[1746280949847,2.7928,1834.4,1834.3,47.30286]
[1746280950348,2.7928,1834.4,1834.3,45.60806]
[1746280951346,1.7028,1834.4,1834.3,45.60806]
[1746280952445,0.8612,1834.5,1834.4,1.09]
[1746280952646,1.6986,1834.6,1834.5,1.08994]
[1746280952949,1.6986,1834.6,1834.5,2.72274]
[1746280953153,1.6986,1834.6,1834.5,6.44074]
[1746280956152,1.0898,1834.8,1834.7,1.08982]
[1746280956348,1.51229051,1834.8,1834.7,1.08982]
[1746280956557,3.281,1834.9,1834.8,1.08976]
[1746280956856,3.70347512,1834.9,1834.8,1.08976]
[1746280957248,3.281,1834.9,1834.8,4.80776]
[1746280958958,3.281,1834.9,1834.8,6.40146]
[1746280959956,3.70346891,1834.9,1834.8,6.40146]
[1746280961661,3.70300456,1834.9,1834.8,6.40146]
[1746280962061,3.281,1834.9,1834.8,4.80776]
[1746280962259,4.79260877,1834.9,1834.8,4.80776]
[1746280962565,3.70290877,1834.9,1834.8,4.80776]
[1746280963062,3.281,1834.9,1834.8,4.80776]
[1746280965959,4.3707,1834.9,1834.8,4.80776]
[1746280966163,3.70271863,1834.9,1834.8,4.80776]
[1746280967063,3.281,1834.9,1834.8,4.80776]
[1746280968467,3.70272636,1834.9,1834.8,4.80776]
[1746280968761,3.281,1834.9,1834.8,4.80776]
[1746280970065,3.70279421,1834.9,1834.8,4.80776]
[1746280970765,3.70279208,1834.9,1834.8,4.80776]
[1746280972064,3.70284265,1834.9,1834.8,4.80776]
[1746280972365,3.70293049,1834.9,1834.8,4.80776]
[1746280972767,3.7029232,1834.9,1834.8,45.60776]
[1746280973469,3.7029232,1834.9,1834.8,46.40476]
[1746280973862,2.4105,1834.9,1834.8,46.40476]
[1746280974064,2.8326019,1834.9,1834.8,46.40476]
[1746280976474,2.83290432,1834.9,1834.8,46.40476]
[1746280977475,2.83290432,1834.9,1834.8,48.01796]
[1746280979478,2.83310944,1834.9,1834.8,48.01796]
[1746280980279,2.83337434,1834.9,1834.8,48.01796]
[1746280980480,2.02737434,1834.9,1834.8,48.01796]
[1746280980681,2.02737434,1834.9,1834.8,48.86116]
[1746280980893,0.42287434,1834.9,1834.8,48.86116]
[1746280981085,2.5227,1835.1,1835.0,1.08964]
[1746280981283,2.94552947,1835.1,1835.0,1.08964]
[1746280981682,2.94552947,1835.1,1835.0,3.51004]
[1746280981980,2.94541008,1835.1,1835.0,3.51004]
[1746280982181,2.94541008,1835.1,1835.0,7.22804]
[1746280982480,2.12841008,1835.1,1835.0,7.22804]
[1746280982879,1.7057,1835.1,1835.0,7.22804]
[1746280983582,4.44154848,1835.3,1835.2,1.08952]
[1746280983882,6.52724227,1835.3,1835.2,1.08952]
[1746280984077,6.52724227,1835.3,1835.2,6.38962]
[1746280984781,3.64354848,1835.3,1835.2,9.81162]
[1746280984979,3.64354848,1835.3,1835.2,14.81162]
[1746280985274,3.81911658,1835.5,1835.4,1.0894]
[1746280985479,3.81911658,1835.5,1835.4,4.2972]
[1746280985681,3.81911658,1835.5,1835.4,9.2972]
[1746280985872,3.81911658,1835.5,1835.4,10.8793]
[1746280986080,3.81911658,1835.5,1835.4,10.4163]
[1746280986284,3.63269961,1835.7,1835.6,1.08928]
[1746280986581,3.63269961,1835.7,1835.6,7.71908]
[1746280987183,3.63269961,1835.7,1835.6,8.52958]
[1746280987983,3.63269961,1835.7,1835.6,10.27218]
[1746280988483,3.63269961,1835.7,1835.6,7.06438]
[1746280988781,3.63269961,1835.7,1835.6,10.27218]
[1746280991377,1.6632,1835.8,1835.7,1.08923]
[1746280991779,1.6632,1835.8,1835.6,7.71908]
[1746280991780,1.08923,1835.7,1835.6,7.71908]
[1746280991980,2.77873,1835.7,1835.6,7.71908]
[1746280993375,2.77873,1835.7,1835.6,3.2078]
[1746280995182,2.77873,1835.7,1835.6,1.08928]
[1746280997582,2.77873,1835.7,1835.5,4.8073]
[1746280997782,2.74438,1835.6,1835.5,3.718]
[1746281000191,2.74438,1835.6,1835.5,4.80734]
[1746281000693,1.6551,1835.6,1835.5,4.80734]
[1746281001297,1.08928,1835.7,1835.6,1.08928]
[1746281001790,1.08928,1835.7,1835.5,4.80732]
[1746281002594,1.08928,1835.6,1835.5,4.80732]
[1746281004396,1.08927,1835.7,1835.6,1.08928]
[1746281005294,1.51022213,1835.7,1835.6,1.08928]
[1746281005486,1.08927,1835.7,1835.6,1.08928]
[1746281006196,1.51035658,1835.7,1835.6,1.08928]
[1746281007590,1.08927,1835.7,1835.6,1.08928]
[1746281008091,1.51073637,1835.7,1835.6,1.08928]
[1746281008800,1.08924,1835.7,1835.6,1.08924]
[1746281009097,1.51072485,1835.7,1835.6,1.08924]
[1746281009899,1.51097831,1835.7,1835.6,1.08924]
[1746281010403,1.08928,1835.6,1835.5,4.8073]
[1746281010693,1.08927,1835.7,1835.6,1.08928]
[1746281010892,1.51103093,1835.7,1835.6,1.08928]
[1746281011088,0.42176093,1835.7,1835.6,1.08928]
[1746281011296,1.08921,1835.8,1835.7,1.08923]
[1746281012191,1.08921,1835.8,1835.7,4.80723]
[1746281012693,6.6368,1836.0,1835.7,3.718]
[1746281012694,4.29689,1836.0,1835.7,3.718]
[1746281013098,4.29689,1836.0,1835.9,1.08911]
[1746281014196,4.29689,1836.0,1835.9,4.80711]
[1746281014399,4.29689,1836.0,1835.9,45.60711]
[1746281017405,3.2078,1836.0,1835.9,45.60711]
[1746281022204,4.29685,1836.0,1835.9,45.60711]
[1746281023706,3.2078,1836.0,1835.9,45.60711]
[1746281025000,4.29685,1836.0,1835.9,45.60711]
[1746281027601,1.08905,1836.0,1835.9,45.60711]
[1746281029910,4.29683,1836.1,1836.0,1.08905]
[1746281030113,4.29683,1836.1,1836.0,4.80705]
[1746281031106,4.29683,1836.1,1836.0,3.718]
[1746281032206,4.29683,1836.1,1836.0,4.80705]
[1746281032597,4.29683,1836.1,1836.0,3.718]
[1746281033405,4.29683,1836.1,1836.0,4.80705]
[1746281036910,4.29683,1836.1,1836.0,8.17115]
[1746281038113,4.8386,1836.3,1836.0,7.0821]
[1746281038315,4.2967,1836.3,1836.2,1.08893]
[1746281038915,1.08887,1836.3,1836.2,1.08893]
[1746281039110,1.08887,1836.3,1836.2,4.80693]
[1746281039507,1.08886,1836.4,1836.2,4.80693]
[1746281039709,1.08886,1836.4,1836.3,2.473]
[1746281040110,1.08886,1836.4,1836.3,7.27987]
[1746281041322,10.08107067,1836.5,1836.3,7.27987]
[1746281041615,11.16982067,1836.5,1836.4,1.635]
[1746281042216,5.92735,1836.5,1836.4,5.353]
[1746281048319,5.92735,1836.5,1836.4,3.718]
[1746281050222,1.08881,1836.4,1836.3,3.2773]
[1746281050827,2.70781,1836.4,1836.3,3.2773]
[1746281051218,2.70781,1836.4,1836.3,6.9953]
[1746281051422,2.70781,1836.4,1836.3,8.08417]
[1746281052333,2.70781,1836.4,1836.3,6.9953]
[1746281052533,2.70781,1836.4,1836.3,8.08417]
[1746281057633,2.70781,1836.4,1836.3,6.9953]
[1746281058039,2.70781,1836.4,1836.3,8.08417]
[1746281058440,2.70781,1836.4,1836.3,6.9953]
[1746281058640,2.70781,1836.4,1836.3,8.08417]
[1746281059243,3.2078,1836.5,1836.4,1.08881]
[1746281059542,3.2078,1836.5,1836.4,2.78761]
[1746281060237,4.9014,1836.5,1836.4,6.50561]
[1746281061045,5.99015,1836.5,1836.4,6.50561]
[1746281061537,6.80995,1836.5,1836.4,6.50561]
[1746281063240,3.2078,1836.5,1836.4,9.92861]
[1746281063637,4.9366,1836.5,1836.4,9.92861]
[1746281065046,6.02535,1836.5,1836.4,9.92861]
[1746281066346,2.81755,1836.5,1836.4,3.718]
[1746281066847,3.68355,1836.5,1836.4,3.718]
[1746281067347,3.68355,1836.5,1836.4,4.80681]
[1746281074854,3.68355,1836.5,1836.4,45.60681]
[1746281079251,1.7288,1836.5,1836.4,45.60681]
[1746281079455,1.7067,1836.7,1836.6,1.08869]
[1746281079655,1.6142,1836.7,1836.6,1.08869]
[1746281080159,1.6142,1836.7,1836.6,3.51719]
[1746281081548,5.44783922,1836.8,1836.7,1.08863]
[1746281081753,5.44783922,1836.8,1836.7,2.72573]
[1746281082153,5.44783922,1836.8,1836.7,6.44373]
[1746281083355,5.44783922,1836.8,1836.7,7.24203]
[1746281083655,1.08857,1836.8,1836.7,7.24199]
[1746281083853,1.08857,1836.8,1836.7,3.718]
[1746281084057,2.80817,1836.8,1836.7,3.718]
[1746281085052,1.08863,1836.7,1836.6,1.08869]
[1746281085248,2.72943,1836.7,1836.6,1.08869]
[1746281085653,1.6408,1836.7,1836.6,1.08869]
[1746281085856,2.72943,1836.7,1836.6,1.08869]
[1746281086354,1.6408,1836.7,1836.6,1.08869]
[1746281086556,6.53625922,1837.1,1836.6,8.421]
[1746281086758,1.74,1836.9,1836.8,1.08857]
[1746281086958,0.8504,1837.0,1836.9,1.08851]
[1746281087161,7.18783922,1837.1,1837.0,1.08845]
[1746281088060,7.18783922,1837.1,1837.0,3.49595]
[1746281088264,7.18783922,1837.1,1837.0,7.21395]
[1746281089060,7.18783922,1837.1,1837.0,4.80645]
[1746281089865,8.27623922,1837.1,1837.0,4.80645]
[1746281090059,7.18783922,1837.1,1837.0,4.80645]
[1746281090259,8.27623922,1837.1,1837.0,4.80645]
[1746281091260,8.27623922,1837.1,1837.0,3.718]
[1746281092259,1.08857,1836.8,1836.7,6.6288]
[1746281092462,1.08857,1836.8,1836.7,4.29643]
[1746281092861,1.08857,1836.8,1836.7,3.2078]
[1746281093361,1.93097,1836.8,1836.7,3.2078]
[1746281093667,1.93097,1836.8,1836.7,1.08863]
[1746281094462,1.08863,1836.7,1836.6,11.7792718]
[1746281094657,3.66803,1836.7,1836.6,11.7792718]
[1746281094861,3.66803,1836.7,1836.6,10.6906018]
[1746281095560,3.66803,1836.7,1836.6,11.7792918]
[1746281095756,3.66803,1836.7,1836.6,10.6906018]
[1746281096561,3.66803,1836.7,1836.6,3.421]
[1746281098570,3.66803,1836.7,1836.6,4.50969]
[1746281099971,3.66803,1836.7,1836.6,3.421]
[1746281100771,3.66803,1836.7,1836.6,4.50969]
[1746281100976,1.7466,1836.7,1836.6,4.50969]
[1746281101874,1.7466,1836.7,1836.6,6.21589]
[1746281102376,1.6678,1837.0,1836.9,1.08851]
[1746281102674,3.2078,1837.1,1837.0,1.08845]
[1746281102871,3.2078,1837.1,1837.0,3.63325]
[1746281103074,4.2962,1837.1,1837.0,7.35125]
[1746281103372,1.6678,1837.1,1837.0,7.35125]
[1746281103572,2.7562,1837.1,1837.0,7.35125]
[1746281104273,1.08837,1837.2,1837.1,1.0884]
[1746281104477,1.08837,1837.2,1837.1,2.7099]
[1746281104670,2.66907,1837.2,1837.1,2.7099]
[1746281104872,2.66907,1837.2,1837.1,1.6215]
[1746281108278,2.66907,1837.2,1837.1,2.7099]
[1746281108670,2.66907,1837.2,1837.1,1.6215]
[1746281108871,2.66907,1837.2,1837.1,2.7099]
[1746281109481,2.66907,1837.2,1837.1,1.6215]
[1746281110483,1.0884,1837.1,1837.0,5.64501]
[1746281110674,2.7259,1837.1,1837.0,5.64501]
[1746281111483,2.7259,1837.1,1837.0,3.718]
[1746281112078,1.08845,1837.0,1836.9,6.10068]
[1746281112280,1.08851,1836.9,1836.8,1.88473]
[1746281112476,1.08857,1836.8,1836.7,3.718]
[1746281112676,2.72607,1836.8,1836.7,3.718]
[1746281113071,2.72607,1836.8,1836.7,4.80663]
[1746281113280,2.72607,1836.8,1836.7,1.08863]
[1746281114082,1.6375,1836.8,1836.7,4.80663]
[1746281114279,2.72607,1836.8,1836.7,4.80663]
[1746281115287,2.72607,1836.8,1836.7,1.08863]
[1746281115986,1.6375,1836.8,1836.7,1.08863]
[1746281116180,3.2078,1837.2,1836.7,1.08863]
[1746281116181,4.39903573,1837.3,1836.8,1.08857]
[1746281116376,1.0884,1837.1,1837.0,1.08842]
[1746281116581,1.08845,1837.0,1836.9,1.08847]
[1746281116778,2.70795,1837.0,1836.9,1.08847]
[1746281117182,3.53915,1837.0,1836.9,4.80647]
[1746281117381,2.4507,1837.0,1836.9,4.80647]
[1746281118291,2.4507,1837.0,1836.9,9.75837]
[1746281118486,1.08838,1837.2,1837.1,1.0884]
[1746281118681,2.77198,1837.2,1837.1,1.0884]
[1746281119679,1.0884,1837.1,1837.0,4.8064]
[1746281119883,2.8215,1837.1,1837.0,4.8064]
[1746281120694,2.8215,1837.1,1837.0,3.718]
[1746281121495,2.8215,1837.1,1837.0,4.80645]
[1746281122194,2.8215,1837.1,1837.0,3.718]
[1746281122495,2.8215,1837.1,1837.0,4.80645]
[1746281123797,2.8215,1837.1,1837.0,3.718]
[1746281126090,1.08851,1836.9,1836.8,3.439]
[1746281126290,1.08851,1836.9,1836.8,4.52757]
[1746281126898,1.93531,1836.9,1836.8,4.52757]
[1746281127195,1.93531,1836.9,1836.8,8.24557]
[1746281127390,1.93531,1836.9,1836.8,7.157]
[1746281127596,1.93531,1836.9,1836.8,3.718]
[1746281128197,1.08857,1836.8,1836.7,3.2078]
[1746281128398,3.56767,1836.8,1836.7,3.2078]
[1746281128700,1.08869,1836.6,1836.5,7.2696018]
[1746281129399,1.94499,1836.6,1836.5,7.2696018]
[1746281130192,1.94499,1836.6,1836.5,10.9876018]
[1746281130799,1.94499,1836.6,1836.5,12.0763518]
[1746281131000,0.8563,1836.6,1836.5,12.0763518]
[1746281131299,1.94499,1836.6,1836.5,12.0763518]
[1746281131498,2.4609,1836.6,1836.5,12.0763518]
[1746281131700,2.4609,1836.6,1836.5,13.7626518]
[1746281132102,2.4609,1836.6,1836.5,6.49305]
[1746281132902,3.54959,1836.6,1836.5,6.49305]
[1746281134503,3.54959,1836.6,1836.5,5.4043]
[1746281135907,3.54959,1836.6,1836.5,6.49305]
[1746281136208,3.54959,1836.6,1836.5,5.4043]
[1746281137809,3.54959,1836.6,1836.5,6.49305]
[1746281138010,1.08867,1836.7,1836.6,1.08867]
[1746281138208,1.08867,1836.7,1836.6,2.83267]
[1746281138410,2.78777,1836.7,1836.6,3.65427]
[1746281139418,1.08867,1836.7,1836.6,3.65427]
[1746281139716,1.6991,1836.8,1836.7,1.08863]
[1746281140016,1.6991,1836.8,1836.7,2.83263]
[1746281140208,2.78767,1836.8,1836.7,6.55063]
[1746281140916,1.6991,1836.8,1836.7,6.55063]
[1746281141316,1.0885,1837.0,1836.7,5.462]
[1746281141516,2.8264,1837.0,1836.9,1.08851]
[1746281141918,1.08851,1836.9,1836.8,2.71884]
[1746281142217,2.82641,1836.9,1836.8,6.43684]
[1746281144117,2.82641,1836.9,1836.8,3.718]
[1746281145416,2.82641,1836.9,1836.8,4.80657]